bitfinex/quotes_BTCUSD_20241226
["timestamp","ask_amount","ask_price","bid_price","bid_amount"]
[1735214528687,0.52180832,95735.0,95727.0,8.56e-05]
[1735214528688,0.25,95728.0,95727.0,8.56e-05]
[1735214528894,1.92972998,95728.0,95727.0,8.56e-05]
[1735214529214,1.9641775,95728.0,95727.0,8.56e-05]
[1735214531174,1.9651775,95728.0,95727.0,8.56e-05]
[1735214531379,1.9681775,95728.0,95727.0,8.56e-05]
[1735214531596,2.06916382,95728.0,95727.0,8.56e-05]
[1735214531796,2.19656382,95728.0,95727.0,8.56e-05]
[1735214532018,2.20156382,95728.0,95727.0,8.56e-05]
[1735214532218,1.82113182,95728.0,95727.0,8.56e-05]
[1735214532647,1.82113182,95728.0,95727.0,6e-07]
[1735214532849,1.56650182,95728.0,95727.0,6e-07]
[1735214533055,0.35894,95721.0,95720.0,0.00060195]
[1735214533255,1.55871002,95721.0,95720.0,0.00060195]
[1735214533494,1.81329402,95721.0,95720.0,0.00060195]
[1735214533705,1.05318702,95721.0,95720.0,0.00060195]
[1735214534445,1.19010102,95721.0,95720.0,0.00060195]
[1735214535492,1.19110102,95721.0,95720.0,0.00060195]
[1735214536991,1.24095587,95721.0,95720.0,9.5e-07]
[1735214537409,1.13498702,95721.0,95720.0,9.5e-07]
[1735214537611,1.14095587,95721.0,95720.0,9.5e-07]
[1735214537814,1.23897334,95721.0,95720.0,9.5e-07]
[1735214538019,1.14095587,95721.0,95720.0,9.5e-07]
[1735214538780,1.13995587,95721.0,95720.0,9.5e-07]
[1735214538980,1.14595587,95721.0,95720.0,9.5e-07]
[1735214539205,1.13995587,95721.0,95720.0,8.645e-05]
[1735214539547,1.14595587,95721.0,95720.0,8.645e-05]
[1735214540040,1.24394219,95721.0,95720.0,8.645e-05]
[1735214540276,3.51923119,95721.0,95720.0,8.645e-05]
[1735214540522,3.48469819,95721.0,95720.0,8.645e-05]
[1735214540781,3.42818719,95721.0,95720.0,8.645e-05]
[1735214540999,3.31404219,95721.0,95720.0,8.645e-05]
[1735214541228,3.30334203,95721.0,95720.0,8.645e-05]
[1735214541453,3.28209903,95721.0,95720.0,8.645e-05]
[1735214541669,3.26380303,95721.0,95720.0,8.645e-05]
[1735214541874,3.32462303,95721.0,95720.0,8.645e-05]
[1735214542017,3.31862303,95721.0,95720.0,8.645e-05]
[1735214542217,3.32462303,95721.0,95720.0,8.645e-05]
[1735214542666,2.87026103,95721.0,95720.0,8.645e-05]
[1735214542870,2.59514003,95721.0,95720.0,8.645e-05]
[1735214543079,2.58914003,95721.0,95720.0,8.645e-05]
[1735214543281,2.59714003,95721.0,95720.0,8.645e-05]
[1735214543477,2.45694519,95721.0,95720.0,8.645e-05]
[1735214543690,2.45494519,95721.0,95720.0,8.645e-05]
[1735214544038,2.45694519,95721.0,95720.0,8.645e-05]
[1735214544454,2.44894519,95721.0,95720.0,8.645e-05]
[1735214544656,2.45094519,95721.0,95720.0,8.645e-05]
[1735214544855,0.30896,95712.0,95711.0,0.0002]
[1735214545201,1.58917908,95712.0,95711.0,0.0002]
[1735214545954,1.59417908,95712.0,95711.0,0.0002]
[1735214547367,1.59517908,95712.0,95711.0,0.0002]
[1735214547811,2.01079708,95712.0,95711.0,0.0002]
[1735214548010,2.0826634,95712.0,95711.0,0.0002]
[1735214548375,2.0691534,95712.0,95711.0,0.0002]
[1735214549000,2.1167534,95712.0,95711.0,0.0002]
[1735214550020,2.1956534,95712.0,95711.0,0.0002]
[1735214550273,2.4476534,95712.0,95711.0,0.0002]
[1735214550697,2.34366708,95712.0,95711.0,0.0002]
[1735214551731,2.34366708,95712.0,95711.0,0.0002856]
[1735214551940,2.40648708,95712.0,95711.0,0.0002856]
[1735214552290,2.41245593,95712.0,95711.0,0.0002856]
[1735214552512,2.34366708,95712.0,95711.0,0.0002856]
[1735214552738,2.33866708,95712.0,95711.0,0.0002856]
[1735214552930,2.4416534,95712.0,95711.0,0.0002856]
[1735214553096,2.4496534,95712.0,95711.0,0.0002856]
[1735214553743,2.34366708,95712.0,95711.0,0.0002856]
[1735214553935,2.14687408,95712.0,95711.0,0.0002856]
[1735214554336,2.07254432,95712.0,95711.0,0.0002856]
[1735214554497,2.07754432,95712.0,95711.0,0.0002856]
[1735214556454,2.11139446,95712.0,95711.0,0.0002856]
[1735214556720,2.14546571,95712.0,95711.0,0.0002856]
[1735214556929,2.23881482,95712.0,95711.0,0.0002856]
[1735214557153,2.34280114,95712.0,95711.0,0.0002856]
[1735214557324,2.23881482,95712.0,95711.0,0.0002856]
[1735214557732,2.14546571,95712.0,95711.0,0.0002856]
[1735214558770,2.21425456,95712.0,95711.0,0.0002856]
[1735214558988,1.86359732,95712.0,95711.0,0.0002856]
[1735214559563,2.00143378,95712.0,95711.0,0.0002856]
[1735214559777,1.53127132,95712.0,95711.0,0.0002856]
[1735214559955,1.64659271,95712.0,95711.0,0.0002856]
[1735214560362,1.83379815,95712.0,95711.0,0.0002856]
[1735214560564,1.79994801,95712.0,95711.0,0.0002856]
[1735214560767,1.27910176,95712.0,95711.0,0.0002856]
[1735214560966,1.27910176,95712.0,95711.0,0.09431675]
[1735214561384,1.09189632,95712.0,95711.0,0.09431675]
[1735214561561,0.77895,95712.0,95711.0,0.1303492]
[1735214561764,0.52795,95712.0,95711.0,0.1303492]
[1735214562230,0.52795,95712.0,95711.0,0.1533492]
[1735214562378,0.52695,95712.0,95711.0,0.1533492]
[1735214562588,0.52695,95712.0,95711.0,0.3623112]
[1735214563455,0.52695,95712.0,95711.0,0.1533492]
[1735214563640,0.52195,95712.0,95711.0,0.1533492]
[1735214563849,0.77813132,95712.0,95711.0,0.0002856]
[1735214564050,0.79385771,95712.0,95711.0,0.0002856]
[1735214564744,0.94385771,95712.0,95711.0,0.0002856]
[1735214564947,0.90978646,95712.0,95711.0,0.0002856]
[1735214566404,1.00345648,95712.0,95711.0,0.0002856]
[1735214566540,1.23037848,95712.0,95711.0,0.0002856]
[1735214567238,1.13670846,95712.0,95711.0,0.0002856]
[1735214567532,1.24069478,95712.0,95711.0,0.0002856]
[1735214567738,1.27476603,95712.0,95711.0,0.0002856]
[1735214568593,1.35486603,95712.0,95711.0,0.0002856]
[1735214568801,1.35686603,95712.0,95711.0,0.0002856]
[1735214569407,1.35486603,95712.0,95711.0,0.0002856]
[1735214569795,1.35686603,95712.0,95711.0,0.0002856]
[1735214569997,1.36186603,95712.0,95711.0,0.0002856]
[1735214570110,1.46428603,95712.0,95711.0,0.0002856]
[1735214570315,1.48481491,95712.0,95711.0,0.0002856]
[1735214570519,1.49381491,95712.0,95711.0,0.0002856]
[1735214570727,1.48681491,95712.0,95711.0,0.0002856]
[1735214571403,1.49381491,95712.0,95711.0,0.0002856]
[1735214571606,1.38982859,95712.0,95711.0,0.0002856]
[1735214571807,1.16290659,95712.0,95711.0,0.0002856]
[1735214572014,2.17800559,95712.0,95711.0,0.0002856]
[1735214572217,1.87306559,95712.0,95711.0,0.0002856]
[1735214572604,1.87506559,95712.0,95711.0,0.0002856]
[1735214572805,1.89007151,95712.0,95711.0,0.0002856]
[1735214572982,1.89707151,95712.0,95711.0,0.0002856]
[1735214573184,1.89507151,95712.0,95711.0,0.0002856]
[1735214573389,1.77117434,95712.0,95711.0,0.0002856]
[1735214573596,1.28648034,95712.0,95711.0,0.0002856]
[1735214573967,0.1,95695.0,95694.0,0.0169677]
[1735214574176,0.35398632,95695.0,95694.0,0.0169677]
[1735214574377,0.52399532,95695.0,95694.0,0.0169677]
[1735214574984,0.15,95693.0,95687.0,0.0169677]
[1735214575307,1.19671032,95693.0,95687.0,0.0169677]
[1735214576020,1.14741532,95693.0,95687.0,0.0169677]
[1735214576425,1.14741532,95693.0,95672.0,0.00104506]
[1735214576633,1.14741532,95693.0,95672.0,0.0169677]
[1735214576634,1.38151127,95693.0,95672.0,0.0169677]
[1735214576845,1.41536141,95693.0,95672.0,0.0169677]
[1735214577134,1.52234773,95693.0,95672.0,0.0169677]
[1735214577700,1.51934773,95693.0,95672.0,0.0169677]
[1735214577977,1.52434773,95693.0,95672.0,0.0169677]
[1735214578161,1.33685178,95693.0,95672.0,0.0169677]
[1735214578398,1.39007533,95693.0,95671.0,0.0002856]
[1735214578659,0.44350632,95690.0,95671.0,0.0002856]
[1735214578898,1.86728132,95690.0,95680.0,0.0169677]
[1735214579063,1.53029032,95690.0,95680.0,0.0169677]
[1735214579301,1.62718157,95690.0,95671.0,0.0002856]
[1735214579426,1.66103171,95690.0,95671.0,0.0002856]
[1735214579775,1.66303171,95690.0,95671.0,0.0002856]
[1735214579974,1.66354732,95690.0,95671.0,0.0002856]
[1735214580480,1.66854732,95690.0,95671.0,0.0002856]
[1735214580621,1.67054732,95690.0,95671.0,0.0002856]
[1735214580832,1.67754732,95690.0,95671.0,0.0002856]
[1735214581039,1.66354732,95690.0,95671.0,0.0002856]
[1735214581234,1.56687718,95690.0,95679.0,0.0169677]
[1735214581484,1.53280593,95690.0,95679.0,0.0169677]
[1735214581889,1.55174121,95690.0,95679.0,0.0169677]
[1735214582090,0.62845193,95690.0,95689.0,0.0170533]
[1735214582523,0.52446561,95690.0,95689.0,0.0170533]
[1735214582754,0.52246561,95690.0,95689.0,0.04109826]
[1735214582963,0.52946561,95690.0,95689.0,0.0400533]
[1735214583079,0.53146561,95690.0,95689.0,0.0400533]
[1735214583500,0.52946561,95690.0,95689.0,0.0400533]
[1735214583785,0.52246561,95690.0,95689.0,0.0400533]
[1735214584413,0.52346561,95690.0,95689.0,0.0400533]
[1735214586068,0.52446561,95690.0,95689.0,0.0190533]
[1735214587271,0.52246561,95690.0,95689.0,0.0170533]
[1735214587674,0.52246561,95690.0,95689.0,0.0190533]
[1735214587896,0.52246561,95690.0,95689.0,0.0170533]
[1735214588691,0.52246561,95690.0,95689.0,0.2260633]
[1735214589334,0.52246561,95690.0,95689.0,0.2500633]
[1735214589536,0.52246561,95690.0,95689.0,0.2490633]
[1735214590369,0.52246561,95690.0,95689.0,0.2500633]
[1735214590569,0.52246561,95690.0,95689.0,0.2490633]
[1735214590892,0.52246561,95690.0,95689.0,0.2500633]
[1735214591201,0.52346561,95690.0,95689.0,0.2500633]
[1735214592177,0.52446561,95690.0,95689.0,0.2520633]
[1735214592728,0.52546561,95690.0,95689.0,0.2560633]
[1735214592934,0.52246561,95690.0,95689.0,0.2490633]
[1735214593141,0.52346561,95690.0,95689.0,0.2550633]
[1735214593345,0.52446561,95690.0,95689.0,0.2590633]
[1735214593500,0.52446561,95690.0,95689.0,0.2530633]
[1735214593697,0.52546561,95690.0,95689.0,0.2590633]
[1735214594900,0.52546561,95690.0,95689.0,0.41588143]
[1735214595099,0.52546561,95690.0,95689.0,0.34418143]
[1735214595359,0.52546561,95690.0,95689.0,0.64816775]
[1735214595562,0.52346561,95690.0,95689.0,0.64296775]
[1735214595915,0.52446561,95690.0,95689.0,0.64696775]
[1735214596116,0.52346561,95690.0,95689.0,0.64296775]
[1735214596349,0.52446561,95690.0,95689.0,0.64496775]
[1735214596553,0.52446561,95690.0,95689.0,0.6663221]
[1735214596763,0.00051561,95690.0,95689.0,0.6603221]
[1735214596964,0.00151561,95690.0,95689.0,0.6643221]
[1735214597377,0.00051561,95690.0,95689.0,0.6603221]
[1735214597609,0.0001712,95720.0,95719.0,0.2259117]
[1735214597813,0.0001712,95720.0,95719.0,0.29239777]
[1735214598226,0.09255854,95734.0,95721.0,0.20894]
[1735214598396,0.09255854,95734.0,95733.0,0.0169677]
[1735214598988,0.09255854,95734.0,95733.0,0.01704315]
[1735214599353,0.208902,95739.0,95733.0,0.01704315]
[1735214599594,0.15,95738.0,95733.0,0.01804315]
[1735214599911,0.15,95738.0,95733.0,0.01904315]
[1735214600550,0.15,95738.0,95733.0,0.01804315]
[1735214600779,0.151,95738.0,95733.0,0.01804315]
[1735214601152,0.151,95738.0,95733.0,0.01704315]
[1735214604529,0.151,95738.0,95737.0,0.0169677]
[1735214604741,0.41781,95737.0,95733.0,7.545e-05]
[1735214604959,0.358905,95737.0,95736.0,0.0169677]
[1735214605110,0.15,95737.0,95736.0,0.0169677]
[1735214606042,0.001,95738.0,95737.0,0.0169677]
[1735214606423,0.001,95738.0,95737.0,0.0159677]
[1735214606624,0.1,95743.0,95737.0,0.0159677]
[1735214607262,0.1,95743.0,95736.0,0.0169677]
[1735214607429,0.208894,95742.0,95736.0,0.0179677]
[1735214607835,0.208894,95742.0,95737.0,0.0159677]
[1735214608256,0.208894,95742.0,95741.0,0.0159677]
[1735214609603,0.209894,95742.0,95741.0,0.0159677]
[1735214609810,0.208894,95742.0,95741.0,0.0159677]
[1735214610287,0.2090652,95742.0,95741.0,0.0159677]
[1735214611174,0.0001712,95742.0,95741.0,0.0159677]
[1735214611384,0.0011712,95742.0,95741.0,0.0159677]
[1735214611807,0.493892,95741.0,95736.0,0.0159677]
[1735214611984,0.10398632,95740.0,95736.0,0.0159677]
[1735214612137,0.208901,95739.0,95736.0,0.0159677]
[1735214612336,0.208905,95737.0,95733.0,7.545e-05]
[1735214612538,0.1268,95735.0,95733.0,0.01604315]
[1735214612742,0.10398632,95734.0,95733.0,0.01604315]
[1735214614547,0.10398632,95734.0,95733.0,0.01804315]
[1735214615139,0.82432232,95734.0,95733.0,0.00207545]
[1735214615655,0.33468632,95734.0,95733.0,0.00407545]
[1735214615786,0.43958032,95734.0,95733.0,0.00407545]
[1735214615984,0.43958032,95734.0,95733.0,0.00207545]
[1735214616203,0.59066664,95734.0,95733.0,0.00207545]
[1735214616387,0.62434144,95734.0,95733.0,7.545e-05]
[1735214616949,0.62834144,95734.0,95733.0,7.545e-05]
[1735214617194,0.69116144,95734.0,95733.0,7.545e-05]
[1735214617360,0.58717512,95734.0,95733.0,7.545e-05]
[1735214617585,0.58917512,95734.0,95733.0,7.545e-05]
[1735214618113,0.308984,95701.0,95700.0,0.00059147]
[1735214618359,0.75567032,95701.0,95700.0,7.58e-05]
[1735214618560,0.90567032,95701.0,95700.0,7.58e-05]
[1735214619752,0.90767032,95701.0,95700.0,7.58e-05]
[1735214619955,1.09708932,95701.0,95700.0,7.58e-05]
[1735214620151,1.14318932,95701.0,95700.0,7.58e-05]
[1735214621204,1.14418932,95701.0,95700.0,7.58e-05]
[1735214621395,1.31592164,95701.0,95700.0,7.58e-05]
[1735214621745,0.585806,95691.0,95690.0,8.56e-05]
[1735214622084,1.18350132,95691.0,95690.0,0.0001614]
[1735214622303,1.15041532,95691.0,95690.0,0.0001614]
[1735214622476,1.05214032,95691.0,95690.0,0.0001614]
[1735214622679,1.01897832,95691.0,95690.0,0.0001614]
[1735214622901,1.02397832,95691.0,95690.0,0.0001614]
[1735214623219,1.52076232,95691.0,95690.0,0.0001614]
[1735214623437,1.32993632,95691.0,95690.0,0.0001614]
[1735214623573,0.1,95678.0,95677.0,0.0159677]
[1735214623774,1.06685184,95678.0,95677.0,0.01605483]
[1735214625020,1.07085184,95678.0,95677.0,0.01605483]
[1735214625420,0.50783152,95678.0,95677.0,0.01605483]
[1735214626042,0.004,95678.0,95677.0,0.01605483]
[1735214626256,0.006,95678.0,95677.0,0.01605483]
[1735214626916,0.004,95678.0,95677.0,0.01605483]
[1735214627118,0.10798632,95678.0,95677.0,0.01605483]
[1735214627339,0.15068775,95678.0,95677.0,0.01605483]
[1735214627811,0.10398632,95678.0,95677.0,0.01605483]
[1735214628263,0.35398632,95678.0,95677.0,8.713e-05]
[1735214628475,0.53396632,95678.0,95677.0,8.713e-05]
[1735214628819,0.53796632,95678.0,95677.0,8.713e-05]
[1735214629024,0.53396632,95678.0,95677.0,8.713e-05]
[1735214629231,0.63357567,95678.0,95677.0,8.713e-05]
[1735214629430,0.63757567,95678.0,95677.0,8.713e-05]
[1735214629633,0.63657567,95678.0,95677.0,8.713e-05]
[1735214630052,0.63857567,95678.0,95677.0,8.713e-05]
[1735214630469,0.63457567,95678.0,95677.0,8.713e-05]
[1735214630827,0.63857567,95678.0,95677.0,8.713e-05]
[1735214631060,0.68797567,95678.0,95677.0,8.713e-05]
[1735214633512,0.48618632,95678.0,95677.0,8.713e-05]
[1735214634591,0.48218632,95678.0,95677.0,8.713e-05]
[1735214634998,0.48418632,95678.0,95677.0,8.713e-05]
[1735214635378,0.48518632,95678.0,95677.0,8.713e-05]
[1735214635764,0.48518632,95678.0,95677.0,0.00017273]
[1735214635972,0.48418632,95678.0,95677.0,0.00017273]
[1735214636106,0.48518632,95678.0,95677.0,0.00017273]
[1735214636527,0.48118632,95678.0,95677.0,0.00017273]
[1735214636730,0.20498632,95678.0,95677.0,0.01614043]
[1735214636927,0.10798632,95678.0,95677.0,0.01614043]
[1735214637721,0.10498632,95678.0,95677.0,0.01614043]
[1735214638128,0.10798632,95678.0,95677.0,0.01614043]
[1735214638423,0.10498632,95678.0,95677.0,0.01614043]
[1735214638956,0.10398632,95678.0,95677.0,0.01614043]
[1735214639520,0.31302032,95678.0,95677.0,0.01614043]
[1735214641093,0.41302032,95678.0,95677.0,0.00017273]
[1735214641372,0.64612675,95678.0,95677.0,0.00017273]
[1735214642128,0.56302032,95678.0,95677.0,0.00017273]
[1735214643285,0.56402032,95678.0,95677.0,0.00017273]
[1735214643706,0.56602032,95678.0,95677.0,0.00017273]
[1735214644108,0.56802032,95678.0,95677.0,0.00017273]
[1735214644315,0.64952032,95678.0,95677.0,0.00017273]
[1735214644468,0.64852032,95678.0,95677.0,0.00017273]
[1735214644671,0.64552032,95678.0,95677.0,0.00017273]
[1735214645188,0.64452032,95678.0,95677.0,0.00017273]
[1735214645569,0.64652032,95678.0,95677.0,0.00017273]
[1735214646154,0.64552032,95678.0,95677.0,0.00017273]
[1735214646467,0.64652032,95678.0,95677.0,0.00017273]
[1735214646902,0.64552032,95678.0,95677.0,0.00017273]
[1735214647111,0.64752032,95678.0,95677.0,0.00017273]
[1735214647728,0.64852032,95678.0,95677.0,0.00017273]
[1735214648064,0.64952032,95678.0,95677.0,0.00017273]
[1735214648475,0.64852032,95678.0,95677.0,0.00017273]
[1735214648738,1.45548964,95678.0,95677.0,0.00017273]
[1735214648906,1.28095284,95678.0,95677.0,0.00017273]
[1735214649113,1.20118684,95678.0,95677.0,0.00017273]
[1735214649349,1.20018684,95678.0,95677.0,0.00017273]
[1735214649532,1.06020152,95678.0,95677.0,0.00017273]
[1735214649848,1.06120152,95678.0,95677.0,0.00017273]
[1735214650254,1.05720152,95678.0,95677.0,0.00017273]
[1735214650630,1.06120152,95678.0,95677.0,0.00017273]
[1735214650819,1.06020152,95678.0,95677.0,0.00017273]
[1735214651024,1.16418784,95678.0,95677.0,0.00017273]
[1735214651221,1.17018784,95678.0,95677.0,0.00017273]
[1735214651857,1.16818784,95678.0,95677.0,0.00017273]
[1735214652030,1.16918784,95678.0,95677.0,0.00017273]
[1735214652964,0.97037464,95678.0,95677.0,0.00017273]
[1735214653175,0.86502664,95678.0,95677.0,0.00017273]
[1735214653328,0.98823064,95678.0,95677.0,0.00017273]
[1735214653656,0.85702664,95678.0,95677.0,0.00017273]
[1735214653871,1.00573064,95678.0,95677.0,0.00017273]
[1735214654045,1.00173064,95678.0,95677.0,0.00017273]
[1735214654429,0.97988564,95678.0,95677.0,0.00017273]
[1735214654821,0.97788564,95678.0,95677.0,0.00017273]
[1735214655037,0.87789932,95678.0,95677.0,0.00017273]
[1735214655431,0.87189932,95678.0,95677.0,0.00017273]
[1735214655662,0.87389932,95678.0,95677.0,0.00017273]
[1735214656071,0.75504032,95678.0,95677.0,0.00017273]
[1735214656278,0.80036332,95678.0,95677.0,0.00017273]
[1735214656480,1.12660112,95678.0,95677.0,0.00017273]
[1735214656595,1.14938901,95678.0,95677.0,0.00017273]
[1735214657158,1.04540269,95678.0,95677.0,0.00017273]
[1735214657387,1.20118627,95678.0,95677.0,0.00017273]
[1735214658031,1.20318627,95678.0,95677.0,0.00017273]
[1735214658346,1.13858461,95678.0,95677.0,0.00017273]
[1735214658546,1.12877661,95678.0,95677.0,0.00017273]
[1735214658774,1.12277661,95678.0,95677.0,0.00017273]
[1735214658979,1.22676293,95678.0,95677.0,0.00017273]
[1735214659191,1.35286643,95678.0,95677.0,0.00017273]
[1735214659401,1.48760421,95678.0,95677.0,0.00017273]
[1735214659609,1.39242229,95678.0,95677.0,0.00017273]
[1735214659983,1.28843597,95678.0,95677.0,0.00017273]
[1735214660392,1.28243597,95678.0,95677.0,0.00017273]
[1735214660591,1.28843597,95678.0,95677.0,0.00017273]
[1735214660998,1.28443597,95678.0,95677.0,0.00017273]
[1735214661383,1.29043597,95678.0,95677.0,0.00017273]
[1735214661563,1.30486729,95678.0,95677.0,0.00017273]
[1735214661767,1.30286729,95678.0,95677.0,0.00017273]
[1735214662182,1.30486729,95678.0,95677.0,0.00017273]
[1735214663310,1.58575265,95678.0,95677.0,0.00017273]
[1735214663503,0.0840323,95675.0,95674.0,0.03]
[1735214663705,3.22536135,95675.0,95674.0,0.03051561]
[1735214663937,3.21350435,95675.0,95674.0,0.03051561]
[1735214664129,3.14899635,95675.0,95674.0,0.03051561]
[1735214664330,0.1468523,95672.0,95671.0,0.0002856]
[1735214664558,4.14979487,95672.0,95671.0,0.0002856]
[1735214664685,4.11500987,95672.0,95671.0,0.0002856]
[1735214665075,3.34116187,95672.0,95671.0,0.0002856]
[1735214665265,3.16888587,95672.0,95671.0,0.0002856]
[1735214665752,3.17088587,95672.0,95671.0,0.0002856]
[1735214666099,0.33542,95642.0,95639.0,0.00059163]
[1735214666295,0.62343862,95640.0,95639.0,0.00059163]
[1735214666498,0.459132,95633.0,95632.0,2.0]
[1735214666751,0.56311832,95633.0,95632.0,2.0]
[1735214667323,0.56363349,95633.0,95632.0,2.0]
[1735214667709,0.56863349,95633.0,95632.0,2.0]
[1735214667942,0.56363349,95633.0,95632.0,2.0]
[1735214668135,0.56563349,95633.0,95632.0,2.0]
[1735214668411,0.36150149,95633.0,95632.0,2.0]
[1735214668786,0.36050149,95633.0,95632.0,2.0]
[1735214668994,0.26050149,95633.0,95632.0,2.0]
[1735214670146,0.25450149,95633.0,95632.0,2.0]
[1735214670351,0.25550149,95633.0,95632.0,2.0]
[1735214670561,0.25450149,95633.0,95632.0,2.0000856]
[1735214672015,0.81307281,95633.0,95632.0,2.0000856]
[1735214672260,0.75307281,95633.0,95632.0,2.0000856]
[1735214672627,0.73864149,95633.0,95632.0,1.99588277]
[1735214674161,0.74564149,95633.0,95632.0,1.99588277]
[1735214674364,0.74064149,95633.0,95632.0,1.99588277]
[1735214674543,0.73864149,95633.0,95632.0,1.99588277]
[1735214674743,0.74364149,95633.0,95632.0,1.99588277]
[1735214674963,0.74564149,95633.0,95632.0,1.99588277]
[1735214675577,0.97847731,95633.0,95632.0,1.99588277]
[1735214676152,0.93185755,95633.0,95632.0,1.99588277]
[1735214676371,1.16358985,95633.0,95632.0,1.99588277]
[1735214676546,0.97955755,95633.0,95632.0,1.99588277]
[1735214677090,1.96315255,95633.0,95632.0,1.99588277]
[1735214677334,1.57992349,95633.0,95632.0,1.99588277]
[1735214677464,1.57492349,95633.0,95632.0,1.99588277]
[1735214677675,1.67890981,95633.0,95632.0,1.99588277]
[1735214677876,1.68290981,95633.0,95632.0,1.99588277]
[1735214678243,1.68490981,95633.0,95632.0,1.99588277]
[1735214678593,0.54702149,95633.0,95632.0,1.99588277]
[1735214678990,0.55502149,95633.0,95632.0,1.99588277]
[1735214680126,0.54302149,95633.0,95632.0,1.99588277]
[1735214680343,0.64291249,95633.0,95632.0,1.99588277]
[1735214680546,0.64204929,95633.0,95632.0,1.99588277]
[1735214680746,1.56132961,95633.0,95632.0,1.99588277]
[1735214680950,0.85925029,95633.0,95632.0,1.99588277]
[1735214681155,0.63904929,95633.0,95632.0,1.99588277]
[1735214681355,0.54102149,95633.0,95632.0,1.99588277]
[1735214681564,0.74528949,95633.0,95632.0,1.99588277]
[1735214681784,0.73797349,95633.0,95632.0,1.99588277]
[1735214682110,0.54102149,95633.0,95632.0,1.99588277]
[1735214682322,0.64717901,95633.0,95632.0,1.99588277]
[1735214682525,0.95199901,95633.0,95632.0,1.99588277]
[1735214682879,1.04501298,95633.0,95632.0,1.99588277]
[1735214683086,1.03400998,95633.0,95632.0,1.99588277]
[1735214683480,1.03200998,95633.0,95632.0,1.99588277]
[1735214683685,0.84688198,95633.0,95632.0,1.99588277]
[1735214683883,0.85488198,95633.0,95632.0,1.99588277]
[1735214684097,0.75586801,95633.0,95632.0,1.99588277]
[1735214684461,0.76186801,95633.0,95632.0,1.99588277]
[1735214684664,0.75986801,95633.0,95632.0,1.99588277]
[1735214685108,0.76786801,95633.0,95632.0,1.99588277]
[1735214685263,0.76186801,95633.0,95632.0,1.99588277]
[1735214685475,0.76586801,95633.0,95632.0,1.99588277]
[1735214686510,0.66188169,95633.0,95632.0,1.99588277]
[1735214686713,0.54719269,95633.0,95632.0,1.99588277]
[1735214686904,0.65929469,95633.0,95632.0,1.99588277]
[1735214687104,0.66529469,95633.0,95632.0,1.99588277]
[1735214687301,0.65929469,95633.0,95632.0,1.99588277]
[1735214687503,0.54319269,95633.0,95632.0,1.99588277]
[1735214687703,0.54919269,95633.0,95632.0,1.99588277]
[1735214687913,0.99780369,95633.0,95632.0,1.99588277]
[1735214688272,1.00380369,95633.0,95632.0,1.99588277]
[1735214688480,0.90888269,95633.0,95632.0,1.99588277]
[1735214688863,1.0058149,95633.0,95632.0,1.99588277]
[1735214689092,1.10980122,95633.0,95632.0,1.99588277]
[1735214689589,1.09276422,95633.0,95632.0,1.99588277]
[1735214689762,0.5356049,95633.0,95632.0,1.99588277]
[1735214689982,0.09361858,95633.0,95632.0,2.01185047]
[1735214690137,0.09561858,95633.0,95632.0,2.01185047]
[1735214690346,0.10161858,95633.0,95632.0,2.01185047]
[1735214690552,0.09961858,95633.0,95632.0,2.31583679]
[1735214690797,0.05179162,95633.0,95632.0,2.44282311]
[1735214691032,0.014,95633.0,95632.0,2.33883679]
[1735214691275,0.002,95633.0,95632.0,2.23883679]
[1735214691410,0.04379162,95657.0,95656.0,0.0159677]
[1735214692224,0.1,95663.0,95656.0,0.0159677]
[1735214692471,0.10398632,95662.0,95656.0,0.03847387]
[1735214693471,0.10398632,95662.0,95661.0,0.0159677]
[1735214693886,0.12604572,95670.0,95669.0,0.0159677]
[1735214694160,0.25398632,95670.0,95669.0,0.0159677]
[1735214694332,0.10398632,95670.0,95669.0,0.0159677]
[1735214694683,0.10398632,95670.0,95669.0,0.01607018]
[1735214696524,0.10498632,95670.0,95669.0,0.01607018]
[1735214697625,0.10498632,95670.0,95669.0,0.00010248]
[1735214698040,0.10398632,95670.0,95669.0,0.01607018]
[1735214698272,0.10498632,95670.0,95669.0,0.00010248]
[1735214699610,0.10398632,95670.0,95669.0,0.00010248]
[1735214700212,0.33378632,95670.0,95669.0,0.00010248]
[1735214700553,1.27530732,95670.0,95669.0,0.00010248]
[1735214700728,1.45561332,95670.0,95669.0,0.00010248]
[1735214700927,0.90830732,95670.0,95669.0,0.00010248]
[1735214701129,0.90930732,95670.0,95669.0,0.00010248]
[1735214701448,0.90830732,95670.0,95669.0,0.00010248]
[1735214701677,1.01229364,95670.0,95669.0,0.00010248]
[1735214701885,0.92612164,95670.0,95669.0,0.00010248]
[1735214702497,0.82213532,95670.0,95669.0,0.00010248]
[1735214702655,0.68311332,95670.0,95669.0,0.00010248]
[1735214702855,0.67293932,95670.0,95669.0,0.00010248]
[1735214703033,0.66793932,95670.0,95669.0,0.00010248]
[1735214703234,0.66593932,95670.0,95669.0,0.00010248]
[1735214703434,0.67193932,95670.0,95669.0,0.00010248]
[1735214703638,0.57764032,95670.0,95669.0,0.00010248]
[1735214703852,0.58264032,95670.0,95669.0,0.00010248]
[1735214704063,0.57027032,95670.0,95669.0,0.00010248]
[1735214704268,0.54843632,95670.0,95669.0,0.00010248]
[1735214704468,0.55043632,95670.0,95669.0,0.00010248]
[1735214704678,0.55643632,95670.0,95669.0,0.00010248]
[1735214704888,0.39308632,95670.0,95669.0,0.00010248]
[1735214705102,0.11698632,95670.0,95669.0,0.01607018]
[1735214705747,0.10398632,95670.0,95669.0,0.01607018]
[1735214705950,0.10615752,95670.0,95669.0,0.01607018]
[1735214706352,0.11215752,95670.0,95669.0,0.01607018]
[1735214706558,0.11015752,95670.0,95669.0,0.01607018]
[1735214706833,0.21015752,95670.0,95669.0,0.01607018]
[1735214707817,0.20415752,95670.0,95669.0,0.01607018]
[1735214709003,0.20415752,95670.0,95669.0,0.00010248]
[1735214709407,0.20415752,95670.0,95669.0,0.01607018]
[1735214712156,0.10415752,95670.0,95669.0,0.01607018]
[1735214712547,0.10415752,95670.0,95669.0,0.00010248]
[1735214713355,0.10415752,95670.0,95669.0,0.01607018]
[1735214717245,0.10415752,95670.0,95669.0,0.22512418]
[1735214717453,0.10415752,95670.0,95669.0,0.01607018]
[1735214719488,0.10515752,95670.0,95669.0,0.01607018]
[1735214720630,0.0011712,95670.0,95669.0,0.0385838]
[1735214721609,0.0011712,95670.0,95669.0,0.01607018]
[1735214721774,0.0011712,95670.0,95669.0,0.01711535]
[1735214721977,0.0011712,95670.0,95669.0,0.04011535]
[1735214722176,0.0001712,95670.0,95669.0,0.04011535]
[1735214722578,0.0011712,95670.0,95669.0,0.04311535]
[1735214722829,0.0001712,95670.0,95669.0,0.11529979]
[1735214723028,0.0011712,95670.0,95669.0,0.11529979]
[1735214723250,0.0021712,95670.0,95669.0,0.11829979]
[1735214723450,0.0021712,95670.0,95669.0,0.11529979]
[1735214723648,0.0021712,95670.0,95669.0,0.11829979]
[1735214723847,0.0031712,95670.0,95669.0,0.11829979]
[1735214724266,0.0021712,95670.0,95669.0,0.21829979]
[1735214724478,0.0021712,95670.0,95669.0,0.31725462]
[1735214724685,0.0031712,95670.0,95669.0,0.32125462]